bitfinex-derivatives/quotes_ETHF0:USTF0_20250518
["timestamp","ask_amount","ask_price","bid_price","bid_amount"]
[1747591916404,6.2902,2475.3,2474.4,3.2078]
[1747591916707,3.2078,2475.1,2474.1,6.0896]
[1747591916912,29.3077,2475.0,2474.2,0.0808342]
[1747591917118,9.1637,2475.0,2474.2,0.0808342]
[1747591917408,23.2,2474.9,2474.2,0.0808342]
[1747591917612,6.1057,2474.8,2474.2,0.0808342]
[1747591918314,3.2078,2475.1,2474.2,0.0808342]
[1747591918506,6.1057,2475.0,2474.2,0.0808342]
[1747591920011,3.2078,2474.8,2474.2,0.0808342]
[1747591920215,6.2364,2474.7,2474.2,0.0808342]
[1747591920607,6.2364,2474.7,2474.3,6.4062]
[1747591920910,6.35862763,2474.7,2474.2,0.0808342]
[1747591921215,3.2078,2474.5,2473.2,1.19991453]
[1747591921417,3.2078,2474.1,2473.2,1.19991453]
[1747591921610,6.44898629,2474.0,2473.2,1.19991453]
[1747591921811,6.2364,2474.0,2473.2,1.19991453]
[1747591922019,3.2078,2474.1,2473.4,3.2078]
[1747591922207,6.2364,2474.0,2473.2,1.19991453]
[1747591922409,6.2364,2474.0,2473.3,0.08086362]
[1747591922814,3.2078,2473.8,2473.3,0.08086362]
[1747591923011,3.2078,2473.4,2473.3,0.08086362]
[1747591923216,9.1373,2473.7,2473.3,0.08086362]
[1747591923418,3.058,2473.8,2473.3,0.08086362]
[1747591923622,3.058,2473.8,2473.5,3.2078]
[1747591923820,2.778,2473.8,2473.5,3.2078]
[1747591924110,6.2658,2474.1,2473.3,0.08086362]
[1747591924316,5.9295,2474.0,2473.4,5.8941]
[1747591924720,5.9295,2474.0,2473.3,0.08086362]
[1747591925016,3.2078,2473.8,2473.3,0.08086362]
[1747591925207,5.9295,2473.7,2473.3,0.08086362]
[1747591925408,3.2078,2473.4,2472.1,1.19991453]
[1747591925603,3.2078,2472.9,2472.1,1.19991453]
[1747591925807,29.1015,2472.8,2472.1,1.19991453]
[1747591926008,29.1005,2472.8,2472.2,3.2078]
[1747591926211,5.9295,2472.8,2472.3,5.8552]
[1747591926407,3.2078,2472.9,2472.3,5.8552]
[1747591926614,23.169,2473.3,2472.5,3.2078]
[1747591926818,10.90411705,2473.4,2472.5,3.2078]
[1747591926819,10.90411705,2473.4,2472.6,5.8552]
[1747591927022,4.71181705,2473.4,2472.9,3.2078]
[1747591927214,4.71181705,2473.4,2471.2,41.03458735]
[1747591927215,1.50401705,2473.4,2473.3,3.2078]
[1747591927717,6.1923,2474.6,2473.3,3.2078]
[1747591927920,3.2078,2474.7,2473.9,3.2078]
[1747591928109,3.2078,2474.7,2474.0,5.8552]
[1747591928314,3.2078,2475.0,2474.1,3.2078]
[1747591928913,6.1923,2474.9,2474.0,5.8552]
[1747591929113,3.2078,2474.7,2474.0,5.8552]
[1747591929521,0.92838976,2474.5,2474.0,5.8552]
[1747591930516,0.80809,2474.1,2474.0,5.8552]
[1747591931013,0.80826,2473.6,2473.2,0.80837]
[1747591931218,0.80832,2473.4,2473.3,6.0522]
[1747591931618,3.2078,2473.7,2473.3,6.0522]
[1747591931924,0.80814,2474.0,2473.4,3.2078]
[1747591932120,0.8082,2473.8,2473.4,3.2078]
[1747591932320,0.80826,2473.6,2473.5,6.1425]
[1747591933114,3.2078,2473.8,2473.5,11.1425]
[1747591933115,0.80821,2473.8,2473.5,11.1425]
[1747591933318,3.2078,2474.1,2473.5,6.1425]
[1747591933519,0.80823,2473.7,2473.5,6.1425]
[1747591933719,0.80826,2473.6,2473.5,6.1425]
[1747591934015,0.80826,2473.6,2472.9,3.2078]
[1747591934016,2.02076,2473.5,2472.9,3.2078]
[1747591934223,2.02076,2473.5,2472.0,2.32918652]
[1747591934224,5.22881,2473.2,2472.0,3.2078]
[1747591934422,8.40166,2473.5,2472.9,6.1425]
[1747591934722,3.2078,2473.6,2472.9,6.1425]
[1747591934921,3.2078,2473.6,2473.4,0.80831]
[1747591935116,3.2078,2474.1,2473.5,6.1461]
[1747591935327,0.80814,2474.0,2473.6,0.80825]
[1747591935523,3.2078,2474.1,2473.8,0.80818]
[1747591935826,9.0331,2474.7,2473.9,9.3539]
[1747591936027,0.80812,2474.1,2473.9,6.1461]
[1747591936331,0.80811,2474.1,2473.9,6.1461]
[1747591936917,0.80813,2474.0,2473.9,6.1461]
[1747591937215,5.22809,2474.1,2473.2,4.82187]
[1747591937415,3.2078,2473.8,2473.3,6.1461]
[1747591937622,5.22809,2474.1,2473.3,6.95444]
[1747591937822,6.63341,2474.1,2473.4,3.2078]
[1747591938017,2.02,2474.4,2473.4,3.2078]
[1747591938218,3.2078,2473.8,2473.3,6.1461]
[1747591938422,0.80832,2473.4,2473.3,6.1461]
[1747591938614,2.0204,2473.9,2473.3,6.1461]
[1747591938615,3.2078,2473.8,2473.3,6.1461]
[1747591938816,2.02089,2473.3,2472.4,7.3925]
[1747591939032,2.02106,2473.1,2472.4,7.3925]
[1747591939226,9.3883,2473.0,2472.4,4.1847]
[1747591939426,0.80865,2472.4,2472.3,6.285]
[1747591939628,6.1805,2473.0,2472.3,6.285]
[1747591939831,0.80865,2472.4,2472.3,6.285]
[1747591940125,0.8087,2472.3,2472.0,1.19991453]
[1747591940317,0.80864,2472.5,2472.1,7.09373]
[1747591940525,6.1805,2472.7,2472.1,6.285]
[1747591940723,0.80864,2472.5,2472.1,7.09374]
[1747591940926,0.8086,2472.6,2472.2,4.0165]
[1747591941133,3.2078,2472.7,2472.0,2.00867453]
[1747591941432,0.80864,2472.5,2472.1,6.3976]
[1747591941628,3.2078,2472.3,2472.0,1.19991453]
[1747591941935,0.80868,2472.3,2472.0,1.19991453]
[1747591942124,3.2078,2472.6,2472.1,6.3976]
[1747591942428,3.2078,2472.9,2472.4,0.80862]
[1747591942625,3.2078,2472.9,2472.5,6.3976]
[1747591942829,3.01759495,2473.7,2472.7,3.2078]
[1747591943026,3.01759495,2473.7,2473.1,3.2078]
[1747591943232,3.01759495,2473.7,2473.2,6.3976]
[1747591944035,3.82583495,2473.7,2473.3,0.80834]
[1747591944230,3.01759495,2473.7,2473.4,6.4276]
[1747591944433,3.01759495,2473.7,2473.5,0.80827]
[1747591944633,3.01759495,2473.7,2472.7,2.02135]
[1747591944634,3.01759495,2473.7,2473.1,3.2078]
[1747591944931,3.2078,2473.6,2473.4,0.80832]
[1747591945126,3.01759495,2473.7,2473.6,0.80826]
[1747591945429,3.01759495,2473.7,2473.5,6.4276]
[1747591945732,9.20919495,2473.7,2473.2,3.2078]
[1747591945929,0.80831,2473.5,2473.1,0.8084]
[1747591946127,0.80831,2473.5,2473.2,7.23598]
[1747591946327,6.99983,2473.7,2473.3,0.80835]
[1747591946533,6.99983,2473.7,2473.4,6.4276]
[1747591946737,0.80826,2473.6,2473.4,6.4276]
[1747591946924,0.80829,2473.5,2473.4,6.4276]
[1747591947235,0.80859,2472.6,2472.2,2.00860453]
[1747591947429,23.062,2472.9,2472.3,6.3719]
[1747591947630,7.13061141,2472.8,2472.4,0.80862]
[1747591947832,1.02749766,2472.7,2472.3,7.18055]
[1747591948031,0.80855,2472.7,2472.3,7.18055]
[1747591948530,0.80858,2472.6,2472.3,7.18055]
[1747591948837,0.80858,2472.6,2472.3,6.3719]
[1747591949036,0.80856,2472.7,2472.3,6.3719]
[1747591949233,6.91256,2472.7,2472.4,0.80863]
[1747591949432,6.91256,2472.7,2472.5,6.3719]
[1747591950034,6.104,2472.7,2472.5,6.3719]
[1747591950436,6.91255,2472.7,2472.5,6.3719]
[1747591950729,3.2078,2472.8,2472.5,6.3719]
[1747591950931,0.80847,2473.0,2472.7,0.80853]
[1747591951133,0.80847,2473.0,2472.5,9.5797]
[1747591951134,6.387,2473.1,2472.8,6.18]
[1747591951330,2.31423834,2473.2,2472.8,6.18]
[1747591951331,2.31423834,2473.2,2473.1,0.80842]
[1747591951834,0.80814,2474.0,2473.1,11.98842]
[1747591952039,3.2078,2474.2,2473.1,11.98842]
[1747591952040,6.387,2474.1,2473.6,3.2078]
[1747591952229,6.387,2474.1,2473.7,6.18]
[1747591952230,0.80818,2473.9,2473.7,6.18]
[1747591952426,6.387,2474.1,2473.7,6.18]
[1747591952626,1.15887113,2473.9,2473.7,6.18]
[1747591952833,0.80819,2473.8,2473.7,6.18]
[1747591953237,1.15887113,2473.9,2473.1,32.2077]
[1747591953429,0.80826,2473.6,2473.1,32.2077]
[1747591953625,6.0527,2473.8,2473.3,0.80834]
[1747591953934,6.0527,2473.8,2473.2,9.0967]
[1747591954128,1.15887113,2473.9,2473.6,0.80825]
[1747591954328,0.8082,2473.8,2473.6,0.80825]
[1747591954639,1.15887113,2473.9,2473.5,3.2078]
[1747591954830,1.15887113,2473.9,2473.6,6.69716]
[1747591955137,1.15887113,2473.9,2473.6,5.8889]
[1747591955732,0.80821,2473.8,2473.6,5.8889]
[1747591955933,0.80822,2473.7,2473.6,5.8889]
[1747591957038,0.80817,2473.9,2473.7,0.80821]
[1747591957234,0.80814,2474.0,2473.8,6.1458]
[1747591957433,1.15887113,2474.4,2473.8,9.3536]
[1747591957630,1.15887113,2474.4,2473.9,0.80814]
[1747591957830,5.987,2474.3,2474.0,6.1458]
[1747591958130,6.79505,2474.3,2474.0,6.95391]
[1747591958330,5.987,2474.3,2474.0,6.1458]
[1747591958827,0.80807,2474.2,2473.5,3.2078]
[1747591959034,1.15887113,2474.4,2473.8,3.2078]
[1747591959335,5.987,2474.6,2474.1,0.80806]
[1747591959537,0.21862239,2474.5,2474.2,5.9611]
[1747591959730,0.80803,2474.3,2474.2,5.9611]
[1747591960832,0.21826643,2474.3,2473.5,4.0261]
[1747591961033,22.962,2474.4,2474.1,0.80809]
[1747591961229,22.962,2474.4,2473.7,2.02057]
[1747591961428,0.80804,2474.3,2473.8,3.2078]
[1747591961625,7.11405,2474.3,2474.0,0.80813]
[1747591961830,6.306,2474.3,2474.1,6.76919]
[1747591962134,3.2078,2474.5,2474.1,5.9611]
[1747591962333,0.80797,2474.5,2474.3,0.80801]
[1747591962534,0.80796,2474.5,2474.4,5.9947]
[1747591963032,7.46487113,2474.7,2474.4,5.9947]
[1747591963233,1.15887113,2474.7,2474.6,0.80793]
[1747591963643,1.96677113,2474.7,2474.6,0.80793]
[1747591963841,1.96677113,2474.7,2474.5,0.80794]
[1747591964040,1.96677113,2474.7,2474.4,5.9947]
[1747591964041,1.96677113,2474.7,2474.6,5.9947]
[1747591964630,0.80798,2474.5,2474.1,3.2078]
[1747591964836,3.2078,2474.5,2474.2,5.9947]
[1747591965038,0.80801,2474.4,2474.2,5.9947]
[1747591965227,5.8354,2474.6,2474.2,5.9947]
[1747591965429,1.15887113,2474.7,2474.6,0.80793]
[1747591965630,1.15887113,2474.7,2474.3,3.2078]
[1747591965837,0.80796,2474.5,2474.4,5.8123]
[1747591966038,0.80796,2474.5,2473.8,3.9465]
[1747591966039,6.176,2474.7,2473.8,7.1543]
[1747591966236,8.1958,2474.7,2473.8,7.1543]
[1747591966438,5.22771,2474.5,2473.9,6.62045]
[1747591966633,6.176,2474.4,2473.9,5.8123]
[1747591966833,0.80811,2474.1,2473.9,6.62043]
[1747591967035,6.176,2474.4,2473.9,5.8123]
[1747591967036,0.80813,2474.0,2473.9,5.8123]
[1747591967442,2.02023,2474.2,2473.5,4.0261]
[1747591967737,6.98417,2473.9,2473.4,5.8123]
[1747591967938,3.2078,2474.3,2473.5,3.2078]
[1747591968135,6.176,2474.2,2473.9,0.80814]
[1747591968436,3.2078,2474.6,2474.2,0.80805]
[1747591968630,0.80809,2474.1,2473.9,5.8317]
[1747591968831,0.80813,2474.0,2473.9,5.8317]
[1747591969032,5.22792,2474.3,2473.7,0.80821]
[1747591969240,5.8893,2474.2,2473.6,5.8317]
[1747591969544,0.80821,2473.8,2473.6,5.8317]
[1747591969745,0.80816,2474.0,2473.8,0.80817]
[1747591969944,9.0971,2474.2,2473.6,5.8317]
[1747591970239,9.0971,2474.2,2473.7,0.80822]
[1747591970240,0.8082,2473.8,2473.7,0.80822]
[1747591970441,0.80835,2473.3,2473.0,3.9465]
[1747591970641,5.8893,2473.7,2473.2,9.0395]
[1747591970941,5.8893,2473.7,2473.4,0.80832]
[1747591971146,0.80827,2473.6,2473.5,5.8317]
[1747591971343,6.69754,2473.7,2473.5,6.63999]
[1747591971544,3.2078,2474.2,2473.7,0.80821]
[1747591971745,5.7754,2474.1,2473.5,5.8317]
[1747591971939,0.80826,2473.6,2473.5,5.8317]
[1747591972141,5.7754,2474.1,2473.7,0.8082]
[1747591972440,0.8082,2473.8,2473.5,5.8317]
[1747591972746,5.7754,2474.1,2473.5,5.8317]
[1747591972937,0.80826,2473.6,2473.5,5.8317]
[1747591973945,5.7754,2473.7,2473.5,5.8317]
[1747591974146,6.58364,2473.7,2473.5,6.63997]
[1747591974547,0.80826,2473.6,2473.5,5.8317]
[1747591975145,0.80825,2473.7,2473.5,6.63998]
[1747591975347,0.80826,2473.6,2473.5,5.8317]
[1747591975940,5.9861,2473.8,2473.5,5.8317]
[1747591976246,0.80824,2473.7,2473.5,6.63996]
[1747591976644,3.2078,2473.9,2473.5,6.63996]
[1747591976645,3.2078,2473.9,2473.8,0.80819]
[1747591977241,9.1939,2474.2,2473.5,5.8317]
[1747591977449,3.2078,2474.2,2473.6,0.80823]
[1747591977645,3.2078,2474.2,2473.5,5.8317]
[1747591977950,0.80817,2473.9,2473.7,0.80821]
[1747591978147,0.80814,2474.0,2473.8,7.02839]
[1747591978451,0.80816,2473.9,2473.8,6.2202]
[1747591978750,0.80824,2473.7,2473.5,0.80827]
[1747591978945,6.1636,2473.8,2473.1,40.752]
[1747591979148,0.8083,2473.5,2473.3,7.02853]
[1747591979554,0.80832,2473.4,2473.3,6.2202]
[1747591979943,6.1636,2473.8,2473.3,6.2202]
[1747591980147,8.18415,2473.8,2473.3,6.2202]
[1747591980347,0.80858,2472.6,2472.2,43.09184897]
[1747591980549,3.2078,2473.4,2472.4,7.81200283]
[1747591980755,5.95895458,2473.3,2472.4,7.81200283]
[1747591981055,0.80858,2472.6,2472.4,7.81200283]
[1747591981260,0.80856,2472.7,2472.4,8.62064283]
[1747591981446,0.80858,2472.6,2472.4,7.81200283]
[1747591981643,1.02619391,2472.6,2472.4,1.59180283]
[1747591982149,6.55008,2472.6,2472.4,1.59180283]
[1747591982552,3.058,2472.8,2472.7,0.80855]
[1747591982750,3.058,2472.8,2472.7,4.01635]
[1747591983148,0.80869,2472.3,2471.9,22.885]
[1747591983354,5.7415,2472.7,2471.9,29.0338]
[1747591983653,1.15887113,2472.9,2472.6,3.2078]
[1747591983850,1.15887113,2472.9,2472.8,0.80852]
[1747591984256,1.15887113,2472.9,2472.8,11.83912]
[1747591984850,1.15887113,2472.9,2472.8,34.72712]
[1747591985953,0.63006899,2473.3,2473.2,0.80839]
[1747591986250,0.80842,2473.2,2472.8,9.2384]
[1747591986452,0.63006899,2473.3,2472.8,9.2384]
[1747591986653,0.80849,2472.9,2472.8,6.0306]
[1747591986954,0.80855,2472.7,2472.6,22.888]
[1747591987453,0.80868,2472.3,2472.2,5.835]
[1747591987659,3.2078,2472.8,2472.2,5.835]
[1747591987954,0.80862,2472.5,2472.3,4.01646]
[1747591988153,0.80862,2472.5,2472.4,5.835]
[1747591988352,6.0503,2472.7,2472.2,3.2078]
[1747591988556,6.69641899,2473.3,2472.4,5.835]
[1747591988857,0.80843,2473.1,2472.9,0.80847]
[1747591989057,1.15887113,2473.2,2473.0,9.0428]
[1747591989258,0.80842,2473.1,2473.0,5.835]
[1747591989558,0.80862,2472.5,2472.4,3.058]
[1747591989859,2.02163,2472.4,2471.5,3.2078]
[1747591990149,0.80904,2471.2,2471.0,2.34484897]
[1747591990356,4.01684,2471.2,2471.0,2.34484897]
[1747591990548,3.2078,2471.2,2471.0,2.34484897]
[1747591991052,9.3453,2471.2,2471.1,2.40087283]
[1747591991257,3.2078,2471.2,2471.1,2.40087283]
[1747591991455,3.2078,2471.2,2471.1,1.59180283]
[1747591991855,30.8868,2471.2,2470.6,3.89950933]
[1747591992145,4.01696,2470.9,2470.2,7.62827509]
[1747591992358,6.1375,2470.8,2470.2,7.62827509]
[1747591992960,6.1375,2470.8,2470.4,0.80928]
[1747591993160,6.1375,2470.8,2470.5,6.176]
[1747591994560,6.1375,2470.8,2470.5,0.80925]
[1747591994859,6.1375,2470.8,2470.6,6.176]
[1747591995652,6.1375,2470.8,2470.1,3.2078]
[1747591995853,6.1375,2470.8,2470.2,5.9425]
[1747591996255,6.94668,2470.8,2470.2,5.9425]
[1747591996553,0.80922,2470.7,2470.2,5.9425]
[1747591996753,6.1375,2470.8,2470.5,0.80927]
[1747591996961,6.1375,2470.8,2470.2,5.9425]
[1747591997264,0.80925,2470.6,2470.2,6.75185]
[1747591997558,6.1375,2470.8,2470.2,5.9425]
[1747591998054,3.2078,2470.6,2470.2,5.9425]
[1747591998260,3.2078,2470.6,2470.2,6.75185]
[1747591998462,0.80931,2470.4,2470.2,5.9425]
[1747591998665,5.8032,2470.5,2470.2,5.9425]
[1747591999054,5.8032,2470.5,2469.9,7.9951]
[1747591999361,5.8032,2470.5,2470.0,5.7728]
[1747591999552,6.61247,2470.5,2470.1,0.8094]
[1747591999758,6.61247,2470.5,2470.2,5.7728]
[1747591999953,5.8032,2470.5,2470.4,0.8093]
[1747592000148,4.01705,2470.6,2470.3,0.80931]
[1747592000352,3.2078,2470.6,2470.5,0.80927]
[1747592000552,3.2078,2470.6,2470.4,5.7728]
[1747592000553,4.01705,2470.6,2470.4,5.7728]
[1747592000753,3.2078,2470.6,2470.4,5.7728]
[1747592000953,4.01705,2470.6,2470.4,5.7728]
[1747592001259,0.80928,2470.5,2469.9,11.2029]
[1747592001462,3.2078,2470.6,2470.0,5.7728]
[1747592001665,0.80936,2470.3,2470.0,5.7728]
[1747592001865,0.80933,2470.4,2470.1,0.80938]
[1747592002068,0.80934,2470.3,2470.2,5.8867]
[1747592002258,3.2078,2470.6,2470.2,5.8867]
[1747592002457,3.2078,2470.6,2470.2,9.0945]
[1747592002662,4.01704,2470.6,2470.4,0.80929]
[1747592002966,4.01705,2470.6,2470.4,0.80929]
[1747592003465,4.01705,2470.6,2470.3,5.8867]
[1747592003466,3.2078,2470.6,2470.3,5.8867]
[1747592003662,4.01705,2470.6,2470.4,0.80928]
[1747592004058,4.01705,2470.6,2470.5,0.80927]
[1747592004059,3.2078,2470.6,2470.5,0.80927]
[1747592004260,0.80924,2470.7,2470.3,5.8867]
[1747592004461,5.9563,2470.8,2470.6,0.80922]
[1747592004661,0.80923,2470.7,2470.5,0.80924]
[1747592004961,5.9563,2470.8,2470.5,0.80924]
[1747592005161,5.9563,2470.8,2470.3,5.8867]
[1747592005365,5.821,2471.1,2471.0,0.80911]
[1747592005661,3.2078,2471.5,2471.4,0.80898]
[1747592005867,2.30167764,2472.2,2471.9,0.80881]
[1747592006267,2.30167764,2472.2,2471.9,5.80881]
[1747592006658,0.96179915,2472.1,2472.0,0.80878]
[1747592006862,0.96179915,2472.1,2472.0,10.26288]
[1747592007163,0.96179915,2472.1,2472.0,13.32088]
[1747592007369,3.08534018,2472.5,2472.1,0.80875]
[1747592007668,0.63006899,2472.6,2472.5,0.80862]
[1747592008062,4.40866729,2473.1,2472.7,0.80855]
[1747592008267,1.20086729,2473.1,2472.7,0.80855]
[1747592009170,1.20086729,2473.1,2472.6,9.1345]
[1747592009368,0.80855,2472.7,2472.6,3.058]
[1747592009671,10.15055,2472.7,2472.6,3.058]
[1747592010266,10.15055,2472.7,2472.1,0.80875]
[1747592010267,0.80866,2472.4,2472.1,0.80875]
[1747592010466,0.80863,2472.5,2472.2,0.80871]
[1747592010662,3.2078,2472.7,2472.6,0.80858]
[1747592010962,3.058,2473.1,2473.0,0.80845]
[1747592011271,0.80835,2473.3,2473.0,0.80845]
[1747592011472,0.80835,2473.3,2473.1,5.9979]
[1747592011665,6.58445,2473.3,2473.1,5.9979]
[1747592011969,0.80839,2473.2,2473.1,5.9979]
[1747592012269,5.7761,2473.3,2473.1,5.9979]
[1747592012470,6.58448,2473.3,2473.1,5.9979]
[1747592012768,3.2078,2473.4,2473.1,5.9979]
[1747592012971,0.80837,2473.3,2473.1,5.9979]
[1747592013465,3.2078,2473.4,2473.1,5.9979]
[1747592013767,6.58447,2473.3,2473.1,5.9979]
[1747592013957,0.80839,2473.2,2473.1,5.9979]
[1747592014161,6.58447,2473.3,2473.1,5.9979]
[1747592015270,3.2078,2473.4,2473.1,5.9979]
[1747592015463,3.2078,2473.4,2473.3,0.80835]
[1747592016070,9.81101,2473.8,2473.5,0.80826]
[1747592016268,5.795,2473.8,2473.1,5.9979]
[1747592016466,0.80803,2474.3,2473.6,2.02065]
[1747592016667,0.80806,2474.2,2474.0,0.80811]
[1747592016873,0.80806,2474.2,2474.1,5.926]
[1747592017058,3.2078,2474.4,2474.3,0.80803]
[1747592017368,0.80804,2474.3,2474.1,6.73409]
[1747592017570,0.80804,2474.3,2474.1,5.926]
[1747592017768,0.80806,2474.2,2474.1,5.926]
[1747592018468,6.1736,2474.3,2473.8,22.599]
[1747592018668,9.3814,2474.1,2473.5,5.9306]
[1747592018970,9.3814,2474.1,2473.6,0.80824]
[1747592019271,0.80818,2473.9,2473.6,0.80824]
[1747592019569,22.415,2474.8,2473.6,0.80824]
[1747592019570,3.2078,2474.5,2473.6,5.0]
[1747592019766,2.01958,2475.0,2473.7,21.79774431]
[1747592020070,4.01571,2474.7,2473.9,2.0204]
[1747592020373,3.2078,2474.7,2474.0,28.7844]
[1747592020674,3.2078,2474.7,2474.3,0.808]
[1747592020865,6.89464,2474.6,2474.4,6.1894]
[1747592021174,6.0867,2474.6,2474.4,6.1894]
[1747592021372,3.2078,2474.7,2474.4,6.1894]
[1747592021575,0.80794,2474.6,2474.4,6.99738]
[1747592021870,2.01991,2474.5,2473.7,7.9788]
[1747592022170,2.02073,2473.6,2472.2,4.41340813]
[1747592022375,3.2078,2473.1,2472.7,6.1894]
[1747592022679,4.01623,2473.1,2472.8,0.80849]
[1747592022868,3.2078,2473.1,2473.0,0.80845]
[1747592023173,6.0867,2473.5,2472.9,6.1894]
[1747592023470,6.895,2473.5,2473.2,0.80837]
[1747592023770,6.89501,2473.5,2473.3,5.9161]
[1747592023972,0.80829,2473.5,2473.3,5.9161]
[1747592024173,0.80832,2473.4,2473.3,5.9161]
[1747592024373,6.308,2473.5,2473.3,5.9161]
[1747592024572,7.1163,2473.5,2473.3,5.9161]
[1747592024975,0.80832,2473.4,2473.3,5.9161]
[1747592025276,7.11632,2473.5,2473.3,5.9161]
[1747592025578,4.01607,2473.6,2473.3,6.72444]
[1747592025777,3.2078,2473.6,2473.4,0.8083]
[1747592025973,6.308,2473.9,2473.5,5.9161]
[1747592026277,0.80817,2473.9,2473.6,0.80824]
[1747592026475,0.80817,2473.9,2473.7,5.8617]
[1747592026679,0.80833,2473.4,2473.0,26.5809]
[1747592026865,0.80837,2473.3,2473.0,27.38934]
[1747592027067,0.80837,2473.3,2473.1,5.8617]
[1747592027767,5.0,2473.3,2472.3,63.341]
[1747592027973,3.2078,2472.9,2472.5,5.8617]
[1747592028473,4.01627,2473.0,2472.5,5.8617]
[1747592028673,0.80849,2472.9,2472.6,0.80857]
[1747592028877,0.80849,2472.9,2472.3,40.749]
[1747592028878,0.80865,2472.4,2472.3,40.749]
[1747592029175,3.2078,2472.7,2472.3,41.55767]
[1747592029381,3.2078,2472.7,2472.4,5.8617]
[1747592029577,0.80862,2472.5,2472.4,5.8617]
[1747592029779,5.8655,2472.6,2471.6,11.2753]
[1747592029974,0.80876,2472.1,2471.7,5.9899]
[1747592030171,3.2078,2472.1,2471.3,62.995]
[1747592030371,6.6743,2472.0,2471.6,5.9899]
[1747592030679,3.2078,2471.8,2471.3,40.751]
[1747592030882,4.01674,2471.5,2471.2,2.39163813]
[1747592031080,5.8655,2471.7,2471.2,2.39163813]
[1747592031384,5.8655,2471.7,2471.3,5.9899]
[1747592031684,5.8655,2471.7,2471.5,5.9899]
[1747592031876,5.8655,2471.7,2471.6,0.80891]
[1747592032078,5.8655,2471.7,2471.5,5.9899]
[1747592032280,3.2078,2472.0,2471.6,22.248]
[1747592032480,3.2078,2472.0,2471.8,0.80884]
[1747592032682,3.2078,2472.0,2471.7,6.2333]
[1747592032882,4.01658,2472.0,2471.7,6.2333]
[1747592033086,5.9282,2471.9,2471.0,3.2078]
[1747592033382,3.2078,2471.8,2471.0,6.2333]
[1747592033586,5.9282,2471.7,2471.6,0.80891]
[1747592033775,5.9282,2471.7,2471.0,6.2333]
[1747592033776,5.9282,2471.7,2471.0,9.4411]
[1747592033976,3.2078,2471.8,2471.0,9.4411]
[1747592034176,4.01667,2471.8,2471.0,9.2913]
[1747592034385,0.80871,2472.3,2471.5,3.2078]
[1747592034690,5.9282,2472.2,2471.6,28.4853]
[1747592034883,3.2078,2472.0,2471.6,28.4853]
[1747592035083,4.0166,2472.0,2471.7,6.2333]
[1747592035281,3.2078,2472.0,2471.7,7.04216]
[1747592035683,10.2193,2472.0,2471.7,6.2333]
[1747592035882,9.4105,2472.0,2471.7,6.2333]
[1747592036189,9.4105,2472.0,2471.8,0.80883]
[1747592036381,9.4105,2472.0,2471.7,6.2333]
[1747592036582,9.4105,2472.0,2471.7,7.04216]
[1747592036789,9.4105,2472.0,2471.8,0.80884]
[1747592037087,9.4105,2472.0,2471.8,0.80883]
[1747592037594,9.4105,2472.0,2471.5,3.2078]
[1747592037777,3.2078,2471.6,2471.4,5.7166]
[1747592037981,4.01673,2471.6,2471.4,5.7166]
[1747592038289,6.2027,2471.5,2471.4,5.7166]
[1747592038682,6.2027,2471.5,2471.0,22.254]
[1747592038889,7.01165,2471.5,2471.2,0.80903]
[1747592039189,6.2027,2471.5,2471.0,6.2457]
[1747592039385,0.80899,2471.4,2471.1,0.80905]
[1747592039591,6.185,2471.3,2470.6,22.254]
[1747592039889,3.2078,2471.0,2470.7,6.2457]
[1747592040090,6.185,2470.9,2470.7,7.0549]
[1747592040285,6.185,2470.9,2470.3,1.58848855]
[1747592040493,4.0171,2470.4,2470.3,1.58848855]
[1747592040988,9.0171,2470.4,2470.3,1.58848855]
[1747592041181,0.80943,2470.0,2469.9,3.11960746]
[1747592041380,25.3268,2470.0,2469.3,23.06565]
[1747592041580,0.80957,2469.6,2469.3,22.256]
[1747592041781,6.2272,2469.5,2469.4,0.89062133]
[1747592041981,6.2272,2469.5,2469.4,0.08099133]
[1747592042190,6.2272,2469.5,2469.4,0.89062133]
[1747592042383,12.0368,2469.5,2469.4,0.08099133]
[1747592042693,3.2078,2469.7,2469.6,0.80956]
[1747592042986,3.2078,2470.0,2469.9,0.80947]
[1747592043189,3.2078,2470.3,2469.6,3.28878477]
[1747592043490,6.2272,2470.8,2470.2,4.01717]
[1747592043688,3.2078,2471.1,2471.0,0.80911]
[1747592043888,2.2702277,2471.6,2471.0,3.2078]
[1747592044190,2.2702277,2471.6,2471.4,0.80897]
[1747592044488,3.2078,2472.0,2471.4,0.80897]
[1747592044489,3.2078,2472.0,2471.4,3.2078]
[1747592044693,3.2078,2472.4,2471.5,5.9196]
[1747592044885,9.4089,2472.4,2471.7,3.2078]
[1747592045191,3.2078,2472.1,2471.1,3.2078]
[1747592045496,0.80885,2471.8,2471.5,5.9196]
[1747592045788,2.02228,2471.6,2470.6,0.80921]
[1747592045998,2.02228,2471.6,2470.7,5.9196]
[1747592045999,3.2078,2471.3,2470.7,5.9196]
[1747592046291,4.0077,2471.7,2470.7,5.9196]
[1747592046493,3.2078,2472.1,2471.3,2.02245]
[1747592046691,3.2078,2472.1,2471.4,5.9196]
[1747592046993,0.80883,2471.9,2471.5,0.80894]
[1747592047186,3.2078,2472.1,2471.4,6.72856]
[1747592047187,6.2011,2471.8,2471.4,6.72856]
[1747592047496,9.4089,2471.8,2471.1,25.4708]
[1747592047691,0.80893,2471.6,2471.2,0.80903]
[1747592047890,5.8154,2471.5,2471.3,0.80899]